[Event "74th PGNiG TERMIKA POL-ch Women 2022"]
[Site "Kruszwica"]
[Date "2022.05.11"]
[Round "3.5"]
[White "Kubicka, Anna"]
[Black "Kulon, Klaudia"]
[Result "0-1"]
[ECO "A88"]
[WhiteElo "2245"]
[BlackElo "2305"]
[Annotator "TA"]
[PlyCount "80"]
[EventDate "2022.05.09"]
[EventType "tourn"]
[EventCountry "POL"]
[SourceTitle "playchess.com"]
[Source "ChessBase"]
[SourceQuality "1"]
[TimeControl "40/5400+30:1800+30"]

{[%evp 14,80,27,28,52,33,35,23,34,26,35,21,32,-7,0,0,-7,-10,0,-5,0,0,0,0,0,0,0,0,0,-12,-10,-45,-44,-39,-45,-59,-43,-50,-51,-45,-46,-76,-54,-102,-72,-92,-44,-30,-4,-43,-50,-42,-5,-83,-94,-173,-189,-240,-253,-593,-585,-603,-610,-537,-595,-717,-667,-920,-828]} 1. d4 {[%emt 0:00:08]} f5 {[%emt 0:00:07]} 2. g3 {[%emt 0:00:07]} Nf6 {[%emt 0:00:16]} 3. Bg2 {[%emt 0:00:09]} d6 {[%emt 0:00:56]} 4. Nf3 {[%emt 0:00:15]} g6 {[%emt 0:00:30]} 5. O-O {[%emt 0:00:09]} Bg7 {[%emt 0:00:04]} 6. c4 {[%emt 0:00:19]} c6 {[%emt 0:00:46]} 7. Nc3 {[%emt 0:00:11]} O-O {[%emt 0:00:06]} 8. Re1 {[%emt 0:00:24]} a5 {[%emt 0:10:18][%cal Oe7e5] A88: Dutch Defence: Leningrad System: 5 Nf3 0-0 6 0-0 d6 7 Nc3 c6.} 9. Qc2 {[%emt 0:04:48]} Na6 {[%emt 0:02:37]} 10. a3 {[%emt 0:00:42]} Nc7 {[%emt 0:01:30] White has an edge.} 11. e4 {[%emt 0:04:29]} fxe4 {[%emt 0:01:33]} 12. Nxe4 {[%emt 0:00:32]} Bf5 {[%emt 0:01:01]} 13. Nh4 {[%emt 0:07:06] [#]} Bxe4 $146 {[%emt 0:03:58]} ({Predecessor:} 13... e6 14. Nxf5 exf5 15. Nc3 Re8 16. Rxe8+ Qxe8 17. Bd2 Qd7 18. Na4 Qd8 19. Re1 Nce8 {0-1 (57) Perez Garcia,M (1176)-Slavin,P (1159) LSS email 2015}) 14. Bxe4 {[%emt 0:00:33]} Nxe4 {[%emt 0:07:25]} 15. Qxe4 {[%emt 0:01:40]} e6 {[%emt 0:00:06]} 16. Qg4 {[%emt 0:32:19]} e5 {[%emt 0:11:36]} 17. Be3 {[%emt 0:05:08]} Qc8 {[%emt 0:02:28]} 18. Qxc8 {[%emt 0:03:09]} Raxc8 {[%emt 0:00:02]} 19. dxe5 {[%emt 0:00:51]} dxe5 {[%emt 0:04:53]} 20. Rad1 {[%emt 0:02:56]} Ne6 {[%emt 0:01:26][%cal Bc7e6,Be6d4,Bd4f3][%mdl 32]} 21. Bb6 {[%emt 0:21:20]} a4 {[%emt 0:04:40]} 22. f4 {[%emt 0:05:09]} c5 {[%emt 0:00:51] And now ...Rc6 would win.} 23. fxe5 {[%emt 0:00:45]} g5 {[%emt 0:00:50]} 24. Ng2 {[%emt 0:00:53]} Nd4 {[%emt 0:00:26] [#] ...Nf3+ is the strong threat.} 25. Kh1 {[%emt 0:00:42]} Nf3 {[%emt 0:01:18]} 26. Re2 {[%emt 0:03:32]} Bxe5 {[%emt 0:08:42]} 27. Ne1 {[%emt 0:00:15]} Bd4 {[%emt 0:02:57] Black is more active.} 28. Nd3 {[%emt 0:04:28]} (28. Ba5 $15) 28... Rc6 $36 {[%emt 0:11:07][%mdl 2048] Black is in control.} 29. Ba5 {[%emt 0:00:03]} Rd6 {[%emt 0:00:06]} (29... Rh6 $17) 30. Kg2 $15 {[%emt 0:01:18]} Bg7 {[%emt 0:10:33][%cal Of3e5] White must now prevent ...Ne5!} 31. Nf2 {[%emt 0:01:01]} Nd4 {[%emt 0:01:35] Strongly threatening ...Ra6.} 32. Re4 {[%emt 0:00:26]} h5 {[%emt 0:02:10]} 33. h3 {[%emt 0:00:16]} (33. Bc3 $11) 33... Nf5 $17 {[%emt 0:00:56]} 34. Rde1 {[%emt 0:00:50]} (34. Bc3 $17 {was necessary.}) 34... Bxb2 $19 {[%emt 0:00:48]} 35. Rb1 {[%emt 0:00:24] [#]} (35. R4e2 $142 Bd4 36. Ne4) 35... Bd4 $1 {[%emt 0:00:26] Threatens to win with ...Ne3+.} ({Weaker is} 35... Bxa3 36. Rxb7 Rdf6 37. Re2) 36. Re2 {[%emt 0:00:36]} (36. Nd1 {was the crucial defense.}) 36... Ne3+ {[%emt 0:00:13] Black is clearly winning.} 37. Kh2 {[%emt 0:00:05]} Nxc4 {[%emt 0:01:06]} 38. Be1 {[%emt 0:00:29]} b6 {[%emt 0:00:18]} 39. Ra2 {[%emt 0:00:35]} Bxf2 {[%emt 0:00:32]} 40. Bxf2 {[%emt 0:00:00]} Nd2 {[%emt 0:00:00] Weighted Error Value: White=0.38/Black=0.08 (flawless)} 0-1

[Event "74th PGNiG TERMIKA POL-ch Women 2022"]
[Site "Kruszwica"]
[Date "2022.05.12"]
[Round "4.1"]
[White "Kubicka, Anna"]
[Black "Zawadzka, Jolanta"]
[Result "1/2-1/2"]
[ECO "A05"]
[WhiteElo "2245"]
[BlackElo "2409"]
[Annotator "TA"]
[PlyCount "110"]
[EventDate "2022.05.09"]
[EventType "tourn"]
[EventCountry "POL"]
[SourceTitle "playchess.com"]
[Source "ChessBase"]
[SourceQuality "1"]
[TimeControl "40/5400+30:1800+30"]

{[%evp 18,110,8,0,54,5,63,74,82,73,68,83,147,138,131,51,114,108,111,119,107,114,123,62,81,38,42,52,42,32,32,32,32,32,32,13,18,7,7,0,1,0,1,1,2,2,32,32,32,32,37,39,42,42,42,42,41,42,43,27,12,0,0,0,0,0,0,0,14,0,0,0,0,0,0,0,0,0,0,0,0,0,0,0,0,0,0,0,0,0,0,0,0,0,1]} 1. Nf3 {[%emt 0:00:08]} Nf6 {[%emt 0:00:24]} 2. g3 {[%emt 0:00:05]} d5 {[%emt 0:00:05]} 3. Bg2 {[%emt 0:00:07]} e6 {[%emt 0:00:12]} 4. O-O {[%emt 0:00:08]} Be7 {[%emt 0:01:20]} 5. d4 {[%emt 0:00:15]} O-O {[%emt 0:03:37]} 6. c4 {[%emt 0:00:10]} c6 {[%emt 0:00:04]} 7. Qc2 {[%emt 0:00:19]} b6 {[%emt 0:00:16]} 8. b3 {[%emt 0:00:20]} Nbd7 {[%emt 0:02:03]} 9. Rd1 {[%emt 0:02:25]} Ba6 {[%emt 0:05:57]} 10. Nbd2 {[%emt 0:01:47]} b5 {[%emt 0:05:29] 10...c5 is the modern continuation. E09: Closed Catalan: Main Line: 7 Qc2 c6 8 Nbd2.} (10... c5 $11) 11. e4 {[%emt 0:16:08]} (11. c5 $1 $14) 11... bxc4 {[%emt 0:09:30]} ({Black should try} 11... dxc4 $1 $11 12. bxc4 bxc4) 12. e5 $14 {[%emt 0:06:51] [#]} Ne4 $146 {[%emt 0:06:57] White is better.} ({Predecessor:} 12... Ne8 13. bxc4 Qa5 14. Bb2 Nb6 15. Bf1 Qa4 16. Rac1 Nc7 17. cxd5 Ncxd5 18. a3 Bxf1 19. Kxf1 {1-0 (37) Jurek,J (2329)-Ten Berge,H (2133) Biel 2000}) 13. Nxe4 {[%emt 0:10:45]} dxe4 {[%emt 0:00:05]} 14. Qxe4 {[%emt 0:03:42]} Rc8 {[%emt 0:16:35]} (14... c3 $142) 15. Qg4 $1 $16 {[%emt 0:03:38] White is more active.} Kh8 {[%emt 0:04:18]} 16. Bg5 {[%emt 0:05:29]} (16. Ng5 $1 $16) 16... Nb6 {[%emt 0:02:17]} (16... cxb3 $14 17. axb3 (17. Bxe7 Qxe7 18. axb3 Be2 $14) 17... Be2) 17. Bf1 {[%emt 0:06:49]} h6 {[%emt 0:13:43][%cal Re7g5]} 18. Bxe7 {[%emt 0:03:50]} Qxe7 {[%emt 0:00:03] [#]} 19. Nd2 $1 {[%emt 0:03:33]} c5 {[%emt 0:01:27] [#]} 20. Nxc4 {[%emt 0:02:13]} (20. bxc4 cxd4 21. Qxd4 Rfd8 $14) (20. Ne4 $1 $16) 20... Nxc4 {[%emt 0:01:36]} 21. Bxc4 {[%emt 0:00:58]} (21. bxc4 {keeps more tension.} Bb7 22. Rab1 Ba8 23. Bg2) 21... Bxc4 {[%emt 0:00:44]} 22. bxc4 {[%emt 0:00:04]} cxd4 {[%emt 0:01:52]} 23. Rxd4 {[%emt 0:00:18]} Rc5 {[%emt 0:00:08]} 24. Qe4 {[%emt 0:00:55]} Qc7 {[%emt 0:00:17]} 25. f4 {[%emt 0:02:58]} Qa5 {[%emt 0:00:28]} 26. Qc2 {[%emt 0:02:16]} g6 {[%emt 0:01:04]} 27. Rad1 {[%emt 0:01:59]} Kg7 {[%emt 0:00:57]} 28. Kg2 {[%emt 0:00:51]} Rfc8 {[%emt 0:01:57]} 29. Kh3 {[%emt 0:07:38]} Qa6 {[%emt 0:02:04]} 30. Rc1 {[%emt 0:02:01]} R8c6 {[%emt 0:02:39]} 31. Qe2 {[%emt 0:01:31]} Ra5 {[%emt 0:01:01]} 32. Rc2 {[%emt 0:00:32]} Rac5 {[%emt 0:01:10]} 33. Qd3 {[%emt 0:03:40]} Rc8 {[%emt 0:02:55]} 34. Rd6 {[%emt 0:03:36]} Qa4 {[%emt 0:01:46][%cal Rc5c4]} 35. Qb3 {[%emt 0:03:18]} Qa5 {[%emt 0:01:24]} 36. Rd7 {[%emt 0:02:24]} Qe1 {[%emt 0:00:56]} 37. Qd3 {[%emt 0:00:21] Inhibits Qf1+.} ({But not} 37. Rxa7 Rxc4 38. Qb7 (38. Rxc4 Qf1+ 39. Kg4 Qe2+ 40. Kh3 Rxc4 $17) (38. Qxc4 $2 Rxc4 39. Rxc4 Qf1+ 40. Kg4 Qxc4 $19) 38... Qf1+ 39. Rg2 Rxf4 40. Qxc8 (40. gxf4 Rc3+ 41. Kg4 Qd1+) 40... Qf3 41. Rxf7+ Rxf7 $17) 37... a5 {[%emt 0:05:23]} 38. Rb2 {[%emt 0:01:30] Hoping for Rbb7.} R5c7 {[%emt 0:00:45] Strongly threatening ...Rxd7.} 39. Rxc7 {[%emt 0:03:38] The position is equal.} Rxc7 $11 {[%emt 0:00:04][%mdl 4096] Endgame KQR-KQR} 40. Kg2 {[%emt 0:00:00]} Qc1 {[%emt 0:00:00][%csl LRb2,LRc4]} 41. Rc2 {[%emt 0:02:32]} Qb1 {[%emt 0:03:23]} 42. Qe2 {[%emt 0:10:35]} Rc5 {[%emt 0:02:06]} 43. Qf2 {[%emt 0:02:54]} Qb7+ {[%emt 0:04:00]} 44. Qf3 Qb1 {[%emt 0:00:19]} 45. Qb3 {[%emt 0:02:30]} Qe1 {[%emt 0:01:02]} 46. Qd3 {[%emt 0:00:58]} Qb1 {[%emt 0:00:29]} 47. Qe2 {[%emt 0:02:57]} Qb7+ {[%emt 0:03:20]} 48. Kh3 Qb1 {[%emt 0:00:28]} 49. Rc3 {[%emt 0:04:33]} Qg1 {[%emt 0:01:30]} 50. Qg2 {[%emt 0:05:25]} Qd4 {[%emt 0:01:37]} 51. Qc2 {[%emt 0:00:38]} Qg1 {[%emt 0:01:38]} 52. Qc1 {[%emt 0:00:27]} Qf2 {[%emt 0:00:48]} 53. Qc2 {[%emt 0:02:34]} Qg1 {[%emt 0:00:30]} 54. Rf3 {[%emt 0:00:23]} Qd4 {[%emt 0:00:54]} 55. Rc3 {[%emt 0:00:43]} Qg1 {Weighted Error Value: White=0.08 (flawless) /Black=0.10 (very precise)} 1/2-1/2

[Event "74th PGNiG TERMIKA POL-ch Women 2022"]
[Site "Kruszwica"]
[Date "2022.05.12"]
[Round "4.2"]
[White "Rudzinska, Michalina"]
[Black "Antolak, Julia"]
[Result "0-1"]
[ECO "C24"]
[WhiteElo "2236"]
[BlackElo "2371"]
[Annotator "TA"]
[PlyCount "80"]
[EventDate "2022.05.09"]
[EventType "tourn"]
[EventCountry "POL"]
[SourceTitle "playchess.com"]
[Source "ChessBase"]
[SourceQuality "1"]
[TimeControl "40/5400+30:1800+30"]

{[%evp 10,80,25,11,8,0,0,0,0,7,0,12,14,0,20,-16,-14,-54,-45,-79,-71,-121,-90,-91,-102,-135,-122,-462,-377,-701,-684,-1040,-1015,-983,-975,-1042,-1027,-979,-607,-635,-625,-629,-621,-621,-616,-569,-341,-586,-546,-652,-608,-682,-657,-768,-614,-623,-621,-608,-607,-596,-564,-644,-653,-720,-706,-911,-893,-857,-862,-985,-973,-923,-859]} 1. e4 {[%emt 0:00:03]} e5 {[%emt 0:00:10]} 2. Bc4 {[%emt 0:00:09]} Nf6 {[%emt 0:00:47]} 3. d3 {[%emt 0:00:09]} c6 {[%emt 0:00:48]} 4. Nf3 {[%emt 0:00:18]} d5 {[%emt 0:00:59]} 5. Bb3 {[%emt 0:00:09]} Bd6 {[%emt 0:04:21]} 6. Nc3 {[%emt 0:01:25][%cal Re4d5]} h6 {[%emt 0:04:59] 6...d4 is the modern continuation. C24: Bishop's Opening: 2...Nf6.} 7. exd5 {[%emt 0:06:56]} (7. O-O {looks sharper.} d4 8. Ne2 O-O 9. Ng3) 7... cxd5 {[%emt 0:00:19]} 8. Bxd5 {[%emt 0:03:21]} ({Avoid the trap} 8. Nxd5 $2 Nxd5 9. O-O Nf6 10. Nxe5 Bxe5 $19) 8... Nxd5 {[%emt 0:02:12] The position is equal.} 9. Nxd5 {[%emt 0:00:09] [#]} O-O $146 {[%emt 0:02:15]} ({Predecessor:} 9... Be6 10. Nc3 Nc6 11. O-O O-O 12. Re1 Rc8 13. h3 Bb8 14. a3 f5 15. Bf4 Qf6 {½-½ (30) Fortunato,L (2152)-Cipka,I (2246) LSS email 2011}) 10. O-O {[%emt 0:03:07]} Nc6 {[%emt 0:03:50]} 11. h3 {[%emt 0:05:35]} f5 {[%emt 0:06:22]} 12. Nc3 {[%emt 0:11:08]} Qf6 {[%emt 0:05:13][%mdl 1024] Black has compensation.} 13. Nh2 {[%emt 0:12:42]} (13. b3 {is more complex.} Be6 14. Nb5 e4 15. dxe4 fxe4 16. Qxd6 exf3 17. Bb2) 13... b6 {[%emt 0:08:32]} 14. Ne2 {[%emt 0:14:47]} Bb7 {[%emt 0:04:34]} 15. f4 {[%emt 0:01:44]} (15. Be3 $142) 15... Rae8 {[%emt 0:06:20] Black is more active.} 16. c3 {[%emt 0:00:50]} Kh7 {[%emt 0:06:13]} 17. fxe5 {[%emt 0:09:05]} Nxe5 {[%emt 0:06:58][%cal Bc6e5,Be5g6,Bg6h4][%mdl 32]} 18. b3 $2 {[%emt 0:12:34][%mdl 8192] Now White is beyond hope.} (18. Bf4 $17 {is tougher.}) 18... Ng6 {[%emt 0:07:30] [#] Strongly threatening ...Nh4.} ({But not} 18... Qg6 $2 19. Nf4 Qg3 20. Rf2 $19) 19. d4 $2 {[%emt 0:05:37]} (19. Rf2 Nh4 20. Qf1) 19... Nh4 $19 {[%emt 0:04:01] And now ...Qg6 would win.} 20. Rf2 {[%emt 0:05:41]} Qg6 {[%emt 0:02:11][%cal Rh4g2]} 21. d5 {[%emt 0:00:47]} Bc5 {[%emt 0:01:43][%csl Gh4,LRf2,LRg2][%cal Rg6g2] This bishop pair is nice.} 22. Nd4 {[%emt 0:01:14]} Bxd5 {[%emt 0:00:19][%cal Rh4g2]} 23. Qf1 {[%emt 0:00:28]} Nxg2 {[%emt 0:07:33]} 24. Rxg2 {[%emt 0:00:08]} Bxg2 {[%emt 0:00:07]} 25. Qxg2 {[%emt 0:00:07]} Bxd4+ {[%emt 0:00:19]} 26. cxd4 {[%emt 0:00:07]} Re1+ {[%emt 0:00:03]} 27. Nf1 {[%emt 0:00:09]} Qxg2+ {[%emt 0:00:21]} 28. Kxg2 {[%emt 0:00:05]} Rc8 {[%emt 0:00:03] Black is clearly winning.} 29. Bb2 {[%emt 0:03:19]} Re2+ {[%emt 0:00:32]} 30. Kf3 {[%emt 0:00:06]} Rxb2 {[%emt 0:00:05][%mdl 4096] Endgame KRR-KRN} 31. Ne3 {[%emt 0:00:49]} g6 {[%emt 0:00:56] Hoping for ...Rc3.} 32. Rd1 {[%emt 0:01:29]} Rd8 {[%emt 0:00:41]} 33. d5 {[%emt 0:00:09]} Rxa2 34. d6 {[%emt 0:00:57]} b5 {[%emt 0:01:21]} 35. Kf4 {[%emt 0:00:32]} Kg7 {[%emt 0:00:52]} 36. Ke5 {[%emt 0:01:05]} Kf7 {[%emt 0:00:04] aiming for ...Re2.} 37. Rc1 {[%emt 0:00:22]} Re2 {[%emt 0:02:01]} 38. Rc7+ {[%emt 0:00:08]} Kf8 {[%emt 0:00:23]} 39. Kf4 {[%emt 0:01:54]} Rxd6 {[%emt 0:00:24]} 40. Rxa7 {[%emt 0:00:00]} Rd3 {[%emt 0:00:00][%csl LRb3,LRe3] Weighted Error Value: White=0.71/Black=0.25 (precise)} 0-1

[Event "74th PGNiG TERMIKA POL-ch Women 2022"]
[Site "Kruszwica"]
[Date "2022.05.12"]
[Round "4.3"]
[White "Malicka, Maria"]
[Black "Majdan, Joanna"]
[Result "1-0"]
[ECO "B56"]
[WhiteElo "2377"]
[BlackElo "2325"]
[Annotator "TA"]
[PlyCount "65"]
[EventDate "2022.05.09"]
[EventType "tourn"]
[EventCountry "POL"]
[SourceTitle "playchess.com"]
[Source "ChessBase"]
[SourceQuality "1"]
[TimeControl "40/5400+30:1800+30"]

{[%evp 18,65,31,29,19,12,20,23,58,57,67,58,64,64,72,69,135,89,154,121,142,118,106,113,110,94,146,145,168,175,213,161,206,193,182,171,253,243,321,237,693,699,904,888,1081,1093,1744,1660,1631,1610]} 1. e4 {[%emt 0:00:02]} c5 {[%emt 0:00:05]} 2. Nf3 {[%emt 0:00:05]} Nc6 {[%emt 0:00:05]} 3. d4 {[%emt 0:00:04]} cxd4 {[%emt 0:00:04]} 4. Nxd4 {[%emt 0:00:03]} Nf6 {[%emt 0:00:07]} 5. Nc3 {[%emt 0:00:06]} d6 {[%emt 0:00:04]} 6. g3 {[%emt 0:00:07]} g6 {[%emt 0:04:56]} 7. Nde2 {[%emt 0:00:22]} Bg7 {[%emt 0:00:23]} 8. Bg2 {[%emt 0:00:06]} O-O {[%emt 0:00:50]} 9. O-O {[%emt 0:01:23]} Be6 {[%emt 0:04:24]} 10. Nd5 {[%emt 0:13:26]} Rc8 {[%emt 0:09:25] B70: Sicilian Dragon: 6 g3 and 6 Be2 (without a later Be3).} 11. h3 {[%emt 0:06:55]} Ne5 {[%emt 0:08:36]} 12. Be3 {[%emt 0:08:02] [#]} Nc4 $146 {[%emt 0:10:41] White has an edge.} ({Predecessor:} 12... Qd7 13. Kh2 Nxd5 14. exd5 Bf5 15. c3 h5 16. b3 b5 17. f4 Nd3 18. g4 hxg4 19. hxg4 {1-0 (43) Sorokin-Losev Moscow 1986}) 13. Bd4 {[%emt 0:04:32]} Bxd5 {[%emt 0:07:00]} 14. exd5 {[%emt 0:00:07]} Qa5 {[%emt 0:03:14]} 15. a4 {[%emt 0:08:26][%cal Ba2a4,Ba4a5][%mdl 32]} Nb6 {[%emt 0:11:49]} 16. c3 {[%emt 0:05:59][%cal Bc2c3,Bc3c4][%mdl 32]} Qa6 {[%emt 0:00:04]} (16... Bh6 $14) 17. Re1 {[%emt 0:02:22]} (17. Nf4 $142) 17... Qc4 {[%emt 0:06:35]} (17... Bh6 $142) 18. b3 {[%emt 0:06:05]} Qc7 {[%emt 0:00:05]} 19. a5 {[%emt 0:01:19]} Nbd7 {[%emt 0:00:28]} 20. Nf4 {[%emt 0:06:35]} Rfe8 {[%emt 0:04:08]} 21. c4 $36 {[%emt 0:00:47][%mdl 2048] White is in control.} a6 {[%emt 0:03:21]} (21... Nc5 $142) 22. h4 $16 {[%emt 0:05:11][%cal Bh3h4,Bh4h5][%mdl 32] 0x0.000a7ad0a608dp-1022s more active pieces.} Nf8 {[%emt 0:03:26]} 23. Bh3 {[%emt 0:07:26]} N6d7 {[%emt 0:00:51]} 24. h5 {[%emt 0:01:04]} Bxd4 {[%emt 0:01:34]} 25. Qxd4 {[%emt 0:00:11]} Ne5 {[%emt 0:03:32] [#] And now ...Nf3+ would win.} 26. Kg2 {[%emt 0:01:42] Inhibits Nf3. Hoping for hxg6.} e6 {[%emt 0:02:10]} (26... Rb8 {keeps fighting.} 27. h6 b6) 27. h6 $18 {[%emt 0:04:48]} Qc5 {[%emt 0:02:56]} 28. Qb2 {[%emt 0:01:10] Black must now prevent Rxe5.} exd5 $2 {[%emt 0:01:29]} (28... Qc7 29. Nd3 f6) 29. Bxc8 {[%emt 0:06:15] White is clearly winning.} dxc4 {[%emt 0:05:59]} 30. Bxb7 {[%emt 0:00:12]} Rb8 {[%emt 0:01:02]} 31. bxc4 {[%emt 0:04:57]} g5 {[%emt 0:02:07]} 32. Nd5 {[%emt 0:01:55] [#] White threatens Rxe5 and mate.} Nfg6 {[%emt 0:02:41]} 33. Nf6+ {[%emt 0:00:43] Weighted Error Value: White=0.14 (very precise) /Black=0.48} 1-0

[Event "74th PGNiG TERMIKA POL-ch Women 2022"]
[Site "Kruszwica"]
[Date "2022.05.12"]
[Round "4.4"]
[White "Cyfka, Karina"]
[Black "Kiolbasa, Oliwia"]
[Result "1/2-1/2"]
[ECO "D37"]
[WhiteElo "2404"]
[BlackElo "2375"]
[Annotator "TA"]
[PlyCount "61"]
[EventDate "2022.05.09"]
[EventType "tourn"]
[EventCountry "POL"]
[SourceTitle "playchess.com"]
[Source "ChessBase"]
[SourceQuality "1"]
[TimeControl "40/5400+30:1800+30"]

{[%evp 9,61,8,29,22,13,-41,-39,-44,-41,-57,-29,-32,22,6,9,6,0,8,51,49,54,56,50,59,68,54,70,50,73,69,67,81,90,45,60,60,44,24,18,10,11,23,26,19,21,1,3,6,6,0,0,0,0,-5]} 1. d4 {[%emt 0:00:03]} d5 {[%emt 0:00:08]} 2. c4 {[%emt 0:00:06]} e6 {[%emt 0:00:08]} 3. Nc3 {[%emt 0:00:11]} Nf6 {[%emt 0:00:14]} 4. Nf3 {[%emt 0:00:26]} dxc4 {[%emt 0:00:56]} 5. Qa4+ {[%emt 0:01:40]} Nc6 {[%emt 0:03:48]} 6. Qxc4 {[%emt 0:06:16] D23: Queen's Gambit Accepted: 3 Nf3 Nf6 sidelines.} Nb4 {[%emt 0:00:22] [#] aiming for ...Nc2+.} 7. Nb5 $146 {[%emt 0:16:37]} ({White should play} 7. Qb3 $1 $11) ({Predecessor:} 7. Qb3 c5 8. a3 cxd4 9. axb4 dxc3 10. bxc3 Bd6 11. Bg5 O-O 12. e3 b6 13. Be2 Bb7 {½-½ (30) Lalith,B (2563)-Adhiban,B (2648) Kanpur 2022}) 7... c6 $15 {[%emt 0:08:03]} 8. Na3 {[%emt 0:00:04] Black is slightly better.} b5 {[%emt 0:04:47]} 9. Qb3 {[%emt 0:02:29]} Ne4 {[%emt 0:23:03][%cal Oe6e5]} (9... a6 $5 {[%cal Rc6c5]}) 10. g3 {[%emt 0:05:37]} Nd5 {[%emt 0:13:59]} (10... Bb7 $15) 11. Qd3 {[%emt 0:09:52]} Bb4+ {[%emt 0:08:30]} 12. Nd2 {[%emt 0:01:25]} Nxd2 {[%emt 0:10:20]} 13. Bxd2 {[%emt 0:00:05]} Qa5 {[%emt 0:00:56]} 14. Bg2 {[%emt 0:06:36]} O-O {[%emt 0:00:18]} 15. Nc2 {[%emt 0:01:42]} Bxd2+ {[%emt 0:02:52]} 16. Qxd2 {[%emt 0:00:04]} Qxd2+ {[%emt 0:00:24]} 17. Kxd2 {[%emt 0:00:02]} Rd8 {[%emt 0:00:09][%cal Oc6c5]} 18. Rhd1 {[%emt 0:07:49]} Bb7 {[%emt 0:03:34][%cal Oc6c5]} 19. Ke1 {[%emt 0:01:43]} Kf8 {[%emt 0:00:07]} 20. Rac1 {[%emt 0:05:32]} a5 {[%emt 0:02:09]} 21. e4 {[%emt 0:04:09]} Nb6 {[%emt 0:04:21]} 22. Ne3 {[%emt 0:01:57]} Rac8 {[%emt 0:00:50]} 23. Rc2 {[%emt 0:03:21]} c5 {[%emt 0:03:02]} 24. Rxc5 {[%emt 0:09:13]} Rxc5 {[%emt 0:00:10]} 25. dxc5 {[%emt 0:00:04]} Rxd1+ {[%emt 0:00:07]} 26. Nxd1 $11 {[%emt 0:00:05] KBN-KBN} Na4 {[%emt 0:01:31] The position is equal.} 27. f3 {[%emt 0:01:23]} Nxc5 {[%emt 0:00:43]} 28. Bf1 {[%emt 0:00:06]} Bc6 {[%emt 0:00:27]} 29. Kd2 {[%emt 0:00:25]} Ke7 {[%emt 0:01:07]} 30. Ke3 {[%emt 0:00:19]} e5 {[%emt 0:02:33]} 31. Nc3 {[%emt 0:01:57] Weighted Error Value: White=0.11 (very precise) /Black=0.09 (flawless)} 1/2-1/2